[Event "Titled Tuesday Blitz June 28 Early 2022"]
[White "Ladan, Nicholas"]
[Black "Costachi, Mihnea"]
[WhiteFideId "30918855"]
[BlackFideId "1217518"]
[WhiteElo "2167"]
[BlackElo "2476"]
[Result "1/2-1/2"]
[Round "06"]
[TimeControl "180+1"]
[Date "2022.06.28"]
[WhiteClock "0:00:04"]
[BlackClock "0:00:04"]

1. d4 {[%clk 0:03:00]}  Nf6 {[%clk 0:02:59]} 2. c4 {[%clk 0:03:00]}  c5 {[%clk 0:02:59]} 3. d5 {[%clk 0:03:01]}  e6 {[%clk 0:02:59]} 4. Nc3 {[%clk 0:03:01]}  g6 {[%clk 0:02:59]} 5. Nf3 {[%clk 0:03:00]}  exd5 {[%clk 0:02:59]} 6. cxd5 {[%clk 0:03:00]}  Bg7 {[%clk 0:02:59]} 7. g3 {[%clk 0:03:00]}  O-O {[%clk 0:03:00]} 8. Bg2 {[%clk 0:03:01]}  a6 {[%clk 0:03:00]} 9. a4 {[%clk 0:03:00]}  d6 {[%clk 0:03:00]} 10. O-O {[%clk 0:03:00]}  Re8 {[%clk 0:03:00]} 11. Re1 {[%clk 0:03:00]}  Nbd7 {[%clk 0:02:57]} 12. Bf4 {[%clk 0:03:00]}  Qc7 {[%clk 0:02:49]} 13. a5 {[%clk 0:02:57]}  Rb8 {[%clk 0:02:49]} 14. Qa4 {[%clk 0:02:39]}  b5 {[%clk 0:02:46]} 15. axb6 {[%clk 0:02:39]}  Nxb6 {[%clk 0:02:43]} 16. Qc6 {[%clk 0:02:38]}  Qxc6 {[%clk 0:02:32]} 17. dxc6 {[%clk 0:02:38]}  Nc4 {[%clk 0:02:30]} 18. Rec1 {[%clk 0:02:14]}  Nxb2 {[%clk 0:02:08]} 19. Bxd6 {[%clk 0:02:11]}  Rb6 {[%clk 0:01:57]} 20. Nd2 {[%clk 0:02:07]}  Bh6 {[%clk 0:01:38]} 21. e3 {[%clk 0:02:02]}  Nd3 {[%clk 0:01:38]} 22. Na4 {[%clk 0:01:51]}  Rb4 {[%clk 0:01:29]} 23. Rcb1 {[%clk 0:01:31]}  Nxf2 {[%clk 0:01:15]} 24. Bxc5 {[%clk 0:01:19]}  Rxb1+ {[%clk 0:01:13]} 25. Rxb1 {[%clk 0:01:19]}  Nd3 {[%clk 0:01:14]} 26. Nc4 {[%clk 0:01:10]}  Be6 {[%clk 0:01:10]} 27. Nd6 {[%clk 0:01:06]}  Nxc5 {[%clk 0:00:45]} 28. Nxe8 {[%clk 0:00:58]}  Bxe3+ {[%clk 0:00:45]} 29. Kf1 {[%clk 0:00:53]}  Nxe8 {[%clk 0:00:38]} 30. Rb8 {[%clk 0:00:47]}  Kf8 {[%clk 0:00:27]} 31. Nxc5 {[%clk 0:00:46]}  Bxc5 {[%clk 0:00:26]} 32. c7 {[%clk 0:00:46]}  Ke7 {[%clk 0:00:22]} 33. c8=Q {[%clk 0:00:46]}  Bxc8 {[%clk 0:00:22]} 34. Rxc8 {[%clk 0:00:47]}  a5 {[%clk 0:00:21]} 35. Ra8 {[%clk 0:00:45]}  Bb4 {[%clk 0:00:21]} 36. Ra7+ {[%clk 0:00:44]}  Ke6 {[%clk 0:00:21]} 37. Bh3+ {[%clk 0:00:41]}  Kf6 {[%clk 0:00:21]} 38. Ke2 {[%clk 0:00:36]}  Nd6 {[%clk 0:00:22]} 39. Bg2 {[%clk 0:00:35]}  Ke5 {[%clk 0:00:20]} 40. Bc6 {[%clk 0:00:30]}  Kd4 {[%clk 0:00:19]} 41. Kf3 {[%clk 0:00:29]}  h5 {[%clk 0:00:17]} 42. Ba4 {[%clk 0:00:22]}  g5 {[%clk 0:00:17]} 43. Bb3 {[%clk 0:00:20]}  g4+ {[%clk 0:00:17]} 44. Kg2 {[%clk 0:00:19]}  f5 {[%clk 0:00:16]} 45. Bf7 {[%clk 0:00:19]}  Nxf7 {[%clk 0:00:14]} 46. Rxf7 {[%clk 0:00:20]}  a4 {[%clk 0:00:13]} 47. Ra7 {[%clk 0:00:17]}  a3 {[%clk 0:00:14]} 48. Kf2 {[%clk 0:00:17]}  Kd3 {[%clk 0:00:14]} 49. Ra4 {[%clk 0:00:16]}  Kc3 {[%clk 0:00:13]} 50. Ke3 {[%clk 0:00:13]}  Kb3 {[%clk 0:00:14]} 51. Ra8 {[%clk 0:00:12]}  a2 {[%clk 0:00:14]} 52. Rxa2 {[%clk 0:00:09]}  Kxa2 {[%clk 0:00:14]} 53. Kf4 {[%clk 0:00:10]}  Bc5 {[%clk 0:00:07]} 54. Kxf5 {[%clk 0:00:09]}  Be3 {[%clk 0:00:06]} 55. Kg6 {[%clk 0:00:08]}  h4 {[%clk 0:00:05]} 56. Kh5 {[%clk 0:00:08]}  hxg3 {[%clk 0:00:03]} 57. hxg3 {[%clk 0:00:08]}  Bf4 {[%clk 0:00:04]} 58. Kxg4 {[%clk 0:00:04]}  Bxg3 {[%clk 0:00:04]} 1/2-1/2


[Site "https://www.chess.com"]

[Event "Titled Tuesday Blitz June 28 Early 2022"]
[White "Ladopoulos, Dimitrios"]
[Black "Ibarra Jerez, Jose Carlos"]
[WhiteFideId "4239580"]
[BlackFideId "2226332"]
[WhiteElo "2734"]
[BlackElo "2900"]
[Result "0-1"]
[Round "06"]
[TimeControl "180+1"]
[Date "2022.06.28"]
[WhiteClock "0:00:26"]
[BlackClock "0:01:31"]

1. Nf3 {[%clk 0:02:52]}  Nf6 {[%clk 0:02:59]} 2. d4 {[%clk 0:02:53]}  g6 {[%clk 0:02:59]} 3. g3 {[%clk 0:02:53]}  d6 {[%clk 0:03:00]} 4. Bg2 {[%clk 0:02:53]}  Bg7 {[%clk 0:03:00]} 5. O-O {[%clk 0:02:54]}  O-O {[%clk 0:03:01]} 6. c4 {[%clk 0:02:55]}  Bf5 {[%clk 0:03:01]} 7. Ne1 {[%clk 0:02:48]}  Nc6 {[%clk 0:03:00]} 8. Nc3 {[%clk 0:02:48]}  Na5 {[%clk 0:02:58]} 9. b3 {[%clk 0:02:32]}  c5 {[%clk 0:02:57]} 10. Bb2 {[%clk 0:02:25]}  cxd4 {[%clk 0:02:54]} 11. Qxd4 {[%clk 0:02:26]}  Nc6 {[%clk 0:02:40]} 12. Qd2 {[%clk 0:02:22]}  Qa5 {[%clk 0:02:35]} 13. Nc2 {[%clk 0:02:15]}  Ne4 {[%clk 0:02:24]} 14. Bxe4 {[%clk 0:02:14]}  Bxe4 {[%clk 0:02:21]} 15. Ne3 {[%clk 0:02:08]}  Nd4 {[%clk 0:02:07]} 16. Rfd1 {[%clk 0:01:50]}  Bf3 {[%clk 0:02:00]} 17. Ned5 {[%clk 0:01:02]}  e6 {[%clk 0:01:49]} 18. Nf4 {[%clk 0:00:55]}  Bxe2 {[%clk 0:01:46]} 19. Qxd4 {[%clk 0:00:43]}  Bxd4 {[%clk 0:01:43]} 20. Rxd4 {[%clk 0:00:44]}  Bf3 {[%clk 0:01:37]} 21. Rxd6 {[%clk 0:00:41]}  Rfd8 {[%clk 0:01:36]} 22. Rd3 {[%clk 0:00:29]}  Rxd3 {[%clk 0:01:34]} 23. Nxd3 {[%clk 0:00:30]}  Rd8 {[%clk 0:01:33]} 24. Ne1 {[%clk 0:00:26]}  Rd2 {[%clk 0:01:31]} 0-1


[Site "https://www.chess.com"]

[Event "Titled Tuesday Blitz June 28 Early 2022"]
[White "Large, Peter G"]
[Black "Samunenkov, Ihor"]
[WhiteFideId "400866"]
[BlackFideId "14187086"]
[WhiteElo "2064"]
[BlackElo "2409"]
[Result "0-1"]
[Round "06"]
[TimeControl "180+1"]
[Date "2022.06.28"]
[WhiteClock "0:00:04"]
[BlackClock "0:00:05"]

1. Nf3 {[%clk 0:02:57]}  Nf6 {[%clk 0:02:59]} 2. b3 {[%clk 0:02:56]}  c5 {[%clk 0:02:51]} 3. Bb2 {[%clk 0:02:56]}  Nc6 {[%clk 0:02:52]} 4. e3 {[%clk 0:02:56]}  d5 {[%clk 0:02:48]} 5. Bb5 {[%clk 0:02:55]}  Bd7 {[%clk 0:02:48]} 6. O-O {[%clk 0:02:55]}  e6 {[%clk 0:02:48]} 7. d3 {[%clk 0:02:55]}  Bd6 {[%clk 0:02:45]} 8. Bxc6 {[%clk 0:02:51]}  Bxc6 {[%clk 0:02:45]} 9. Ne5 {[%clk 0:02:52]}  Qc7 {[%clk 0:02:44]} 10. f4 {[%clk 0:02:51]}  O-O {[%clk 0:02:40]} 11. Nd2 {[%clk 0:02:50]}  Be8 {[%clk 0:02:31]} 12. Ng4 {[%clk 0:02:45]}  Nxg4 {[%clk 0:02:22]} 13. Qxg4 {[%clk 0:02:44]}  f5 {[%clk 0:02:23]} 14. Qh3 {[%clk 0:02:31]}  e5 {[%clk 0:02:22]} 15. Nf3 {[%clk 0:01:55]}  exf4 {[%clk 0:02:20]} 16. Ng5 {[%clk 0:01:54]}  h6 {[%clk 0:01:51]} 17. Ne6 {[%clk 0:01:54]}  Qf7 {[%clk 0:01:50]} 18. Nxf8 {[%clk 0:01:53]}  Kxf8 {[%clk 0:01:49]} 19. exf4 {[%clk 0:01:51]}  d4 {[%clk 0:01:49]} 20. Bc1 {[%clk 0:01:44]}  Bc6 {[%clk 0:01:49]} 21. Bd2 {[%clk 0:01:43]}  Bd5 {[%clk 0:01:45]} 22. Rae1 {[%clk 0:01:42]}  Kg8 {[%clk 0:01:45]} 23. Re2 {[%clk 0:01:35]}  Kh7 {[%clk 0:01:44]} 24. Rfe1 {[%clk 0:01:35]}  b5 {[%clk 0:01:43]} 25. Qg3 {[%clk 0:01:10]}  c4 {[%clk 0:01:38]} 26. h3 {[%clk 0:00:55]}  Rc8 {[%clk 0:01:37]} 27. Kh2 {[%clk 0:00:44]}  c3 {[%clk 0:01:26]} 28. Bc1 {[%clk 0:00:44]}  b4 {[%clk 0:01:26]} 29. Qf2 {[%clk 0:00:40]}  Qf6 {[%clk 0:01:17]} 30. Re8 {[%clk 0:00:34]}  Rxe8 {[%clk 0:01:03]} 31. Rxe8 {[%clk 0:00:34]}  Bb7 {[%clk 0:00:58]} 32. Qe2 {[%clk 0:00:28]}  Bd5 {[%clk 0:00:56]} 33. Rc8 {[%clk 0:00:24]}  Qh4 {[%clk 0:00:41]} 34. Qf1 {[%clk 0:00:15]}  a5 {[%clk 0:00:28]} 35. g3 {[%clk 0:00:14]}  Qe7 {[%clk 0:00:27]} 36. Qf2 {[%clk 0:00:14]}  Bb7 {[%clk 0:00:25]} 37. Rc4 {[%clk 0:00:13]}  Bc5 {[%clk 0:00:24]} 38. Kg1 {[%clk 0:00:11]}  Qd6 {[%clk 0:00:22]} 39. Kf1 {[%clk 0:00:10]}  Qd5 {[%clk 0:00:22]} 40. Ke2 {[%clk 0:00:10]}  Ba6 {[%clk 0:00:21]} 41. Qf3 {[%clk 0:00:08]}  Qe6+ {[%clk 0:00:21]} 42. Kf2 {[%clk 0:00:07]}  Bxc4 {[%clk 0:00:22]} 43. bxc4 {[%clk 0:00:07]}  a4 {[%clk 0:00:11]} 44. g4 {[%clk 0:00:07]}  Kg6 {[%clk 0:00:06]} 45. Qd5 {[%clk 0:00:04]}  Qxd5 {[%clk 0:00:06]} 46. cxd5 {[%clk 0:00:04]}  Kf6 {[%clk 0:00:05]} 47. Kf3 {[%clk 0:00:04]}  g6 {[%clk 0:00:05]} 0-1


[Site "https://www.chess.com"]

[Event "Titled Tuesday Blitz June 28 Early 2022"]
[White "Le, Quang Liem"]
[Black "Timofeev, Artyom"]
[WhiteFideId "12401137"]
[BlackFideId "4140419"]
[WhiteElo "2980"]
[BlackElo "2843"]
[Result "1-0"]
[Round "06"]
[TimeControl "180+1"]
[Date "2022.06.28"]
[WhiteClock "0:00:19"]
[BlackClock "0:00:02"]

1. Nf3 {[%clk 0:03:00]}  Nf6 {[%clk 0:02:58]} 2. g3 {[%clk 0:03:01]}  g6 {[%clk 0:02:57]} 3. b3 {[%clk 0:03:00]}  Bg7 {[%clk 0:02:57]} 4. Bb2 {[%clk 0:03:01]}  O-O {[%clk 0:02:57]} 5. Bg2 {[%clk 0:03:01]}  d6 {[%clk 0:02:57]} 6. d4 {[%clk 0:02:58]}  Re8 {[%clk 0:02:52]} 7. O-O {[%clk 0:02:57]}  Nbd7 {[%clk 0:02:52]} 8. c4 {[%clk 0:02:50]}  c6 {[%clk 0:02:47]} 9. Nc3 {[%clk 0:02:39]}  e5 {[%clk 0:02:45]} 10. e4 {[%clk 0:02:39]}  exd4 {[%clk 0:02:43]} 11. Nxd4 {[%clk 0:02:40]}  Nc5 {[%clk 0:02:42]} 12. Qc2 {[%clk 0:02:32]}  Qc7 {[%clk 0:02:35]} 13. Rad1 {[%clk 0:02:31]}  Bg4 {[%clk 0:02:34]} 14. Rd2 {[%clk 0:02:24]}  Rad8 {[%clk 0:02:33]} 15. h3 {[%clk 0:02:23]}  Bc8 {[%clk 0:02:33]} 16. b4 {[%clk 0:02:15]}  Ne6 {[%clk 0:02:32]} 17. Nxe6 {[%clk 0:02:13]}  Bxe6 {[%clk 0:02:30]} 18. Ne2 {[%clk 0:02:14]}  a5 {[%clk 0:02:24]} 19. a3 {[%clk 0:02:09]}  axb4 {[%clk 0:02:23]} 20. axb4 {[%clk 0:02:10]}  Qb6 {[%clk 0:02:19]} 21. Qb3 {[%clk 0:02:04]}  Qa6 {[%clk 0:02:11]} 22. Rc1 {[%clk 0:01:54]}  b5 {[%clk 0:01:39]} 23. cxb5 {[%clk 0:01:55]}  Qxb5 {[%clk 0:01:39]} 24. Qd3 {[%clk 0:01:47]}  Qxb4 {[%clk 0:01:23]} 25. Rxc6 {[%clk 0:01:45]}  Nxe4 {[%clk 0:01:12]} 26. Bxe4 {[%clk 0:01:29]}  Bxb2 {[%clk 0:01:10]} 27. Nf4 {[%clk 0:01:28]}  Bd7 {[%clk 0:00:44]} 28. Rxd6 {[%clk 0:01:21]}  Rxe4 {[%clk 0:00:41]} 29. Rxd7 {[%clk 0:01:21]}  Rxd7 {[%clk 0:00:41]} 30. Qxd7 {[%clk 0:01:21]}  Bc3 {[%clk 0:00:27]} 31. Rd1 {[%clk 0:01:19]}  Re1+ {[%clk 0:00:19]} 32. Rxe1 {[%clk 0:01:19]}  Bxe1 {[%clk 0:00:20]} 33. Nd3 {[%clk 0:01:09]}  Bxf2+ {[%clk 0:00:18]} 34. Nxf2 {[%clk 0:01:10]}  Qb3 {[%clk 0:00:15]} 35. Qd6 {[%clk 0:01:06]}  h5 {[%clk 0:00:14]} 36. Qf4 {[%clk 0:01:04]}  Qa2 {[%clk 0:00:14]} 37. Qd4 {[%clk 0:01:00]}  Qb3 {[%clk 0:00:14]} 38. Ne4 {[%clk 0:00:59]}  Qa2 {[%clk 0:00:15]} 39. Nf6+ {[%clk 0:00:59]}  Kf8 {[%clk 0:00:15]} 40. Nd5 {[%clk 0:00:52]}  Kg8 {[%clk 0:00:14]} 41. h4 {[%clk 0:00:46]}  Qb3 {[%clk 0:00:13]} 42. Ne3 {[%clk 0:00:45]}  Qb1+ {[%clk 0:00:12]} 43. Kf2 {[%clk 0:00:45]}  Qa2+ {[%clk 0:00:13]} 44. Kf3 {[%clk 0:00:44]}  Qb3 {[%clk 0:00:13]} 45. Qd5 {[%clk 0:00:43]}  Qa3 {[%clk 0:00:12]} 46. Qe5 {[%clk 0:00:42]}  Qb3 {[%clk 0:00:12]} 47. Kg2 {[%clk 0:00:42]}  Qa2+ {[%clk 0:00:12]} 48. Kh3 {[%clk 0:00:41]}  Qb1 {[%clk 0:00:12]} 49. Kh2 {[%clk 0:00:39]}  Qa2+ {[%clk 0:00:12]} 50. Ng2 {[%clk 0:00:37]}  Qb3 {[%clk 0:00:11]} 51. Qe1 {[%clk 0:00:34]}  Qa2 {[%clk 0:00:11]} 52. Kh3 {[%clk 0:00:34]}  Qb3 {[%clk 0:00:11]} 53. Nf4 {[%clk 0:00:34]}  Qa2 {[%clk 0:00:11]} 54. Qe8+ {[%clk 0:00:32]}  Kg7 {[%clk 0:00:10]} 55. Qe5+ {[%clk 0:00:32]}  Kg8 {[%clk 0:00:11]} 56. Qd5 {[%clk 0:00:31]}  Qa1 {[%clk 0:00:09]} 57. Kg2 {[%clk 0:00:28]}  Qb2+ {[%clk 0:00:08]} 58. Kf3 {[%clk 0:00:28]}  Qc3+ {[%clk 0:00:08]} 59. Nd3 {[%clk 0:00:27]}  Qa3 {[%clk 0:00:07]} 60. Ke4 {[%clk 0:00:26]}  Qa4+ {[%clk 0:00:06]} 61. Ke3 {[%clk 0:00:25]}  Qa3 {[%clk 0:00:06]} 62. Qd8+ {[%clk 0:00:25]}  Kg7 {[%clk 0:00:06]} 63. Qd4+ {[%clk 0:00:26]}  Kg8 {[%clk 0:00:07]} 64. Kf4 {[%clk 0:00:26]}  Qa2 {[%clk 0:00:05]} 65. Ne5 {[%clk 0:00:25]}  Qe6 {[%clk 0:00:04]} 66. Qd7 {[%clk 0:00:22]}  Qb3 {[%clk 0:00:04]} 67. Qc8+ {[%clk 0:00:19]}  Kg7 {[%clk 0:00:04]} 68. Qc4 {[%clk 0:00:20]}  Qb2 {[%clk 0:00:02]} 69. Qxf7+ {[%clk 0:00:19]} 1-0


[Site "https://www.chess.com"]

[Event "Titled Tuesday Blitz June 28 Early 2022"]
[White "Livaic, Leon"]
[Black "Dubov, Daniil"]
[WhiteFideId "14531534"]
[BlackFideId "24126055"]
[WhiteElo "2862"]
[BlackElo "3054"]
[Result "0-1"]
[Round "06"]
[TimeControl "180+1"]
[Date "2022.06.28"]
[WhiteClock "0:00:03"]
[BlackClock "0:00:25"]

1. d4 {[%clk 0:03:00]}  Nf6 {[%clk 0:02:59]} 2. c4 {[%clk 0:03:01]}  e6 {[%clk 0:02:59]} 3. Nf3 {[%clk 0:03:00]}  d5 {[%clk 0:02:59]} 4. Nc3 {[%clk 0:03:01]}  Nbd7 {[%clk 0:02:55]} 5. cxd5 {[%clk 0:03:00]}  exd5 {[%clk 0:02:55]} 6. Bg5 {[%clk 0:03:01]}  c6 {[%clk 0:02:55]} 7. Qc2 {[%clk 0:03:01]}  Be7 {[%clk 0:02:55]} 8. e3 {[%clk 0:03:01]}  Nf8 {[%clk 0:02:56]} 9. Ne5 {[%clk 0:02:58]}  N6d7 {[%clk 0:02:52]} 10. Bxe7 {[%clk 0:02:41]}  Qxe7 {[%clk 0:02:52]} 11. Nxd7 {[%clk 0:02:42]}  Bxd7 {[%clk 0:02:51]} 12. Bd3 {[%clk 0:02:42]}  Ne6 {[%clk 0:02:49]} 13. O-O-O {[%clk 0:02:42]}  g6 {[%clk 0:02:34]} 14. Kb1 {[%clk 0:02:42]}  Ng7 {[%clk 0:02:28]} 15. f3 {[%clk 0:02:42]}  O-O {[%clk 0:02:21]} 16. e4 {[%clk 0:02:39]}  dxe4 {[%clk 0:02:22]} 17. fxe4 {[%clk 0:02:39]}  Rad8 {[%clk 0:02:22]} 18. Rhe1 {[%clk 0:02:27]}  Rfe8 {[%clk 0:02:12]} 19. Qf2 {[%clk 0:02:26]}  Bg4 {[%clk 0:02:11]} 20. Be2 {[%clk 0:02:16]}  Bxe2 {[%clk 0:02:10]} 21. Rxe2 {[%clk 0:02:17]}  Rd7 {[%clk 0:02:04]} 22. e5 {[%clk 0:02:16]}  Red8 {[%clk 0:02:01]} 23. Ne4 {[%clk 0:02:15]}  Ne8 {[%clk 0:02:00]} 24. h4 {[%clk 0:01:57]}  Rd5 {[%clk 0:02:00]} 25. Rdd2 {[%clk 0:01:23]}  Qd7 {[%clk 0:01:52]} 26. Nc5 {[%clk 0:01:17]}  Qe7 {[%clk 0:01:52]} 27. Ne4 {[%clk 0:01:17]}  b6 {[%clk 0:01:52]} 28. h5 {[%clk 0:01:13]}  c5 {[%clk 0:01:35]} 29. hxg6 {[%clk 0:01:12]}  hxg6 {[%clk 0:01:31]} 30. dxc5 {[%clk 0:01:05]}  Rxe5 {[%clk 0:01:26]} 31. Rxd8 {[%clk 0:00:21]}  Qxd8 {[%clk 0:01:25]} 32. Nc3 {[%clk 0:00:21]}  Rxc5 {[%clk 0:01:15]} 33. a3 {[%clk 0:00:20]}  Nf6 {[%clk 0:01:10]} 34. Rd2 {[%clk 0:00:20]}  Qe7 {[%clk 0:01:10]} 35. Qd4 {[%clk 0:00:18]}  Re5 {[%clk 0:01:04]} 36. g4 {[%clk 0:00:17]}  Kg7 {[%clk 0:00:50]} 37. Qf4 {[%clk 0:00:16]}  Re1+ {[%clk 0:00:48]} 38. Kc2 {[%clk 0:00:16]}  Qe5 {[%clk 0:00:46]} 39. Qf3 {[%clk 0:00:03]}  Re3 {[%clk 0:00:43]} 40. Qg2 {[%clk 0:00:02]}  Rg3 {[%clk 0:00:42]} 41. Qb7 {[%clk 0:00:01]}  Nxg4 {[%clk 0:00:41]} 42. Qxa7 {[%clk 0:00:02]}  Ne3+ {[%clk 0:00:40]} 43. Kb1 {[%clk 0:00:03]}  Rg1+ {[%clk 0:00:24]} 44. Ka2 {[%clk 0:00:03]}  Qe6+ {[%clk 0:00:25]} 45. b3 {[%clk 0:00:03]}  Qe5 {[%clk 0:00:25]} 0-1


[Site "https://www.chess.com"]

[Event "Titled Tuesday Blitz June 28 Early 2022"]
[White "Lou, Yiping"]
[Black "Hovhannisyan, Robert"]
[WhiteFideId "8603928"]
[BlackFideId "13302507"]
[WhiteElo "2763"]
[BlackElo "2918"]
[Result "0-1"]
[Round "06"]
[TimeControl "180+1"]
[Date "2022.06.28"]
[WhiteClock "0:00:02"]
[BlackClock "0:00:16"]

1. d4 {[%clk 0:03:00]}  d5 {[%clk 0:02:59]} 2. c4 {[%clk 0:03:00]}  c6 {[%clk 0:03:00]} 3. Nf3 {[%clk 0:02:59]}  Nf6 {[%clk 0:02:59]} 4. e3 {[%clk 0:02:59]}  Bg4 {[%clk 0:03:00]} 5. h3 {[%clk 0:02:55]}  Bh5 {[%clk 0:03:00]} 6. Nc3 {[%clk 0:02:55]}  e6 {[%clk 0:03:00]} 7. Qb3 {[%clk 0:02:52]}  Qb6 {[%clk 0:03:00]} 8. g4 {[%clk 0:02:48]}  Bg6 {[%clk 0:02:58]} 9. Ne5 {[%clk 0:02:48]}  Qxb3 {[%clk 0:02:57]} 10. axb3 {[%clk 0:02:47]}  Bc2 {[%clk 0:02:58]} 11. c5 {[%clk 0:02:27]}  Bxb3 {[%clk 0:02:54]} 12. Bd3 {[%clk 0:02:25]}  Nfd7 {[%clk 0:02:48]} 13. Nxd7 {[%clk 0:01:58]}  Nxd7 {[%clk 0:02:47]} 14. Ra3 {[%clk 0:01:59]}  Bc4 {[%clk 0:02:47]} 15. Bxc4 {[%clk 0:01:58]}  dxc4 {[%clk 0:02:48]} 16. Ra4 {[%clk 0:01:56]}  h5 {[%clk 0:02:35]} 17. g5 {[%clk 0:01:21]}  Be7 {[%clk 0:02:35]} 18. h4 {[%clk 0:01:16]}  e5 {[%clk 0:02:27]} 19. Rxc4 {[%clk 0:01:05]}  Rc8 {[%clk 0:01:46]} 20. Ra4 {[%clk 0:00:57]}  a6 {[%clk 0:01:46]} 21. Ne2 {[%clk 0:00:57]}  Nf8 {[%clk 0:01:25]} 22. b4 {[%clk 0:00:49]}  exd4 {[%clk 0:01:23]} 23. exd4 {[%clk 0:00:48]}  Ne6 {[%clk 0:01:23]} 24. Kd2 {[%clk 0:00:35]}  Rd8 {[%clk 0:01:19]} 25. Kc3 {[%clk 0:00:31]}  Nc7 {[%clk 0:01:19]} 26. Ra2 {[%clk 0:00:20]}  Kd7 {[%clk 0:01:13]} 27. Be3 {[%clk 0:00:18]}  Nd5+ {[%clk 0:01:08]} 28. Kc4 {[%clk 0:00:18]}  Rhe8 {[%clk 0:01:08]} 29. Nf4 {[%clk 0:00:17]}  Nxf4 {[%clk 0:01:05]} 30. Bxf4 {[%clk 0:00:18]}  Bf8 {[%clk 0:01:04]} 31. Be5 {[%clk 0:00:13]}  Ke6 {[%clk 0:00:37]} 32. Rh3 {[%clk 0:00:09]}  f6 {[%clk 0:00:36]} 33. Bc7 {[%clk 0:00:06]}  Rd5 {[%clk 0:00:34]} 34. Re2+ {[%clk 0:00:04]}  Kd7 {[%clk 0:00:34]} 35. Rxe8 {[%clk 0:00:04]}  Kxe8 {[%clk 0:00:35]} 36. f4 {[%clk 0:00:03]}  Kd7 {[%clk 0:00:33]} 37. Bb8 {[%clk 0:00:03]}  Kc8 {[%clk 0:00:30]} 38. Re3 {[%clk 0:00:02]}  Kd7 {[%clk 0:00:16]} 0-1


[Site "https://www.chess.com"]

[Event "Titled Tuesday Blitz June 28 Early 2022"]
[White "Mikhalsky, Vladimir"]
[Black "Thiel, Thomas"]
[WhiteFideId "14144352"]
[BlackFideId "4615964"]
[WhiteElo "2301"]
[BlackElo "2254"]
[Result "1-0"]
[Round "06"]
[TimeControl "180+1"]
[Date "2022.06.28"]
[WhiteClock "0:00:18"]
[BlackClock "0:00:01"]

1. d4 {[%clk 0:03:00]}  Nf6 {[%clk 0:02:57]} 2. c4 {[%clk 0:02:59]}  g6 {[%clk 0:02:57]} 3. f3 {[%clk 0:02:59]}  c5 {[%clk 0:02:55]} 4. d5 {[%clk 0:02:58]}  Bg7 {[%clk 0:02:55]} 5. e4 {[%clk 0:02:58]}  O-O {[%clk 0:02:54]} 6. Nc3 {[%clk 0:02:58]}  e6 {[%clk 0:02:53]} 7. Be3 {[%clk 0:02:58]}  exd5 {[%clk 0:02:52]} 8. cxd5 {[%clk 0:02:57]}  d6 {[%clk 0:02:50]} 9. Qd2 {[%clk 0:02:57]}  Re8 {[%clk 0:02:48]} 10. a4 {[%clk 0:02:56]}  Nh5 {[%clk 0:02:45]} 11. Bb5 {[%clk 0:02:53]}  Bd7 {[%clk 0:02:43]} 12. Nge2 {[%clk 0:02:52]}  a6 {[%clk 0:02:40]} 13. Bc4 {[%clk 0:02:47]}  f5 {[%clk 0:02:37]} 14. O-O {[%clk 0:02:41]}  Qf6 {[%clk 0:02:29]} 15. Bg5 {[%clk 0:02:35]}  Qf7 {[%clk 0:02:24]} 16. exf5 {[%clk 0:02:26]}  gxf5 {[%clk 0:02:22]} 17. g4 {[%clk 0:02:17]}  Nf6 {[%clk 0:02:17]} 18. Nf4 {[%clk 0:02:14]}  fxg4 {[%clk 0:01:44]} 19. Ne6 {[%clk 0:02:13]}  g3 {[%clk 0:01:37]} 20. hxg3 {[%clk 0:02:10]}  Rc8 {[%clk 0:01:25]} 21. Ne4 {[%clk 0:02:00]}  Ne8 {[%clk 0:01:05]} 22. Nd8 {[%clk 0:01:46]}  Qg6 {[%clk 0:01:00]} 23. Nxb7 {[%clk 0:01:43]}  Bf5 {[%clk 0:00:55]} 24. Rae1 {[%clk 0:01:17]}  Nd7 {[%clk 0:00:52]} 25. Bd3 {[%clk 0:01:03]}  Rcb8 {[%clk 0:00:50]} 26. g4 {[%clk 0:00:53]}  Bxe4 {[%clk 0:00:39]} 27. Bxe4 {[%clk 0:00:52]}  Qf7 {[%clk 0:00:38]} 28. Na5 {[%clk 0:00:37]}  Rxb2 {[%clk 0:00:36]} 29. Qf4 {[%clk 0:00:37]}  Qxf4 {[%clk 0:00:29]} 30. Bxf4 {[%clk 0:00:37]}  Ndf6 {[%clk 0:00:26]} 31. Bf5 {[%clk 0:00:35]}  Kf8 {[%clk 0:00:19]} 32. Be6 {[%clk 0:00:32]}  Rd8 {[%clk 0:00:11]} 33. g5 {[%clk 0:00:30]}  Ng8 {[%clk 0:00:09]} 34. Nc6 {[%clk 0:00:27]}  Ra8 {[%clk 0:00:07]} 35. Bf5 {[%clk 0:00:24]}  h6 {[%clk 0:00:04]} 36. Bc1 {[%clk 0:00:19]}  Rb4 {[%clk 0:00:02]} 37. f4 {[%clk 0:00:19]}  Rxa4 {[%clk 0:00:01]} 38. Bg6 {[%clk 0:00:18]} 1-0


[Site "https://www.chess.com"]